bitfinex/quotes_ETHUSD_20251224
["timestamp","ask_amount","ask_price","bid_price","bid_amount"]
[1766549431321,2.3516,2955.5,2955.1,0.001]
[1766549431622,3.38273329,2956.2,2955.1,0.001]
[1766549431623,2.38540015,2955.9,2955.1,0.001]
[1766549431824,2.3516,2955.9,2955.1,0.001]
[1766549432557,2.3516,2955.9,2955.1,0.0348398]
[1766549432846,2.3516,2955.7,2955.1,0.71514273]
[1766549433145,2.3516,2955.7,2955.1,0.68130293]
[1766549433323,2.3516,2955.5,2955.1,0.001]
[1766549433518,0.88,2955.7,2954.6,3.38546444]
[1766549433519,2.3516,2955.3,2954.6,3.38546444]
[1766549433737,2.3516,2955.2,2954.6,0.001]
[1766549433916,0.01026676,2955.6,2954.6,0.001]
[1766549433917,2.38540015,2955.1,2954.6,0.001]
[1766549434123,2.38540015,2955.1,2954.7,3.38443683]
[1766549434436,2.62394017,2955.1,2955.0,0.001]
[1766549434610,2.62394017,2955.1,2954.4,0.001]
[1766549436627,2.4557,2955.4,2954.4,0.03484782]
[1766549436829,0.03380015,2955.3,2954.4,0.03484782]
[1766549437414,2.4557,2955.4,2954.4,0.03484782]
[1766549437607,2.48950015,2955.9,2954.4,0.001]
[1766549437943,2.48950015,2955.9,2954.4,3.831]
[1766549438143,2.48950015,2955.9,2954.5,0.3831]
[1766549438338,2.48950015,2955.9,2954.6,0.881]
[1766549438942,5.87256601,2955.9,2954.7,6.7688767]
[1766549439146,2.4557,2955.8,2954.7,6.7688767]
[1766549439346,2.48950015,2955.7,2954.7,6.7688767]
[1766549439549,2.48950015,2955.7,2954.8,0.76498767]
[1766549442346,2.48950015,2955.7,2954.9,3.38420927]
[1766549443048,2.4557,2955.7,2955.0,0.03384094]
[1766549443340,2.4557,2955.7,2955.0,3.86384094]
[1766549444312,2.4557,2955.7,2955.1,3.38398023]
[1766549444519,0.03380015,2955.6,2955.0,3.83]
[1766549444747,2.4557,2955.5,2955.0,7.21406632]
[1766549445945,2.4557,2955.5,2955.0,8.35049254]
[1766549446453,2.4557,2955.5,2955.0,11.73458729]
[1766549447145,0.03380015,2955.9,2955.0,11.73458729]
[1766549447350,2.4557,2955.8,2955.0,8.35049254]
[1766549447557,2.48950015,2955.7,2955.0,8.35049254]
[1766549449041,2.48950015,2955.7,2955.0,4.52049254]
[1766549449551,2.48950015,2955.7,2955.0,3.38406632]
[1766549451649,2.49150015,2955.7,2955.0,3.38406632]
[1766549454364,2.49150015,2955.7,2955.0,6.76816107]
[1766549454569,2.49150015,2955.7,2955.1,0.0338398]
[1766549455339,2.4577,2955.7,2955.1,0.0338398]
[1766549455568,0.002,2955.7,2955.2,3.38386572]
[1766549455738,3.39244411,2956.7,2955.3,0.03383751]
[1766549455739,2.4557,2956.0,2955.3,0.03383751]
[1766549456068,0.03380015,2955.9,2955.3,0.03383751]
[1766549458173,0.03380015,2955.9,2955.2,0.03383865]
[1766549458472,0.03380015,2955.9,2955.2,3.41762318]
[1766549459049,2.4557,2955.9,2955.2,3.41762318]
[1766549459250,2.48950015,2955.8,2955.2,3.41762318]
[1766549459997,2.48950015,2955.8,2955.3,3.38373126]
[1766549459998,2.4557,2955.8,2955.3,3.38373126]
[1766549460149,2.4557,2955.8,2955.4,0.03383636]
[1766549464282,2.4557,2955.8,2955.3,0.03383751]
[1766549464872,0.03380015,2955.7,2955.3,0.03383751]
[1766549465381,2.34940015,2955.7,2955.3,0.03383751]
[1766549465569,2.34940015,2955.7,2955.3,3.41756768]
[1766549465570,2.3156,2955.7,2955.3,3.41756768]
[1766549465887,2.3156,2955.7,2955.3,0.03383751]
[1766549467283,2.34940015,2955.6,2955.0,0.882]
[1766549467681,2.34940015,2955.6,2955.2,3.38381392]
[1766549468378,2.35140015,2955.9,2955.3,0.03383751]
[1766549468584,2.3176,2955.9,2955.2,0.03383865]
[1766549469283,0.002,2955.7,2955.2,0.03383865]
[1766549469479,0.002,2955.7,2955.2,0.80221856]
[1766549470973,0.002,2955.7,2955.3,3.38375122]
[1766549471174,0.002,2955.7,2955.2,3.41765953]
[1766549471358,2.3156,2955.6,2955.0,0.882]
[1766549471558,2.34940015,2955.5,2955.0,0.882]
[1766549471771,2.34940015,2955.5,2955.1,3.38396676]
[1766549472660,2.34940015,2955.5,2955.0,4.26604757]
[1766549473185,2.34940015,2955.5,2955.1,3.38393594]
[1766549473390,2.3156,2955.5,2955.1,3.38393594]
[1766549475107,2.3156,2955.5,2955.1,6.76791617]
[1766549475995,2.3156,2955.5,2955.1,3.38393594]
[1766549477674,2.3156,2955.5,2955.0,0.882]
[1766549477900,2.3156,2955.5,2955.0,4.26606111]
[1766549478098,2.3156,2955.5,2955.0,8.79827946]
[1766549483000,0.002,2955.7,2955.1,0.0338398]
[1766549483292,2.3176,2955.7,2955.1,0.0338398]
[1766549483467,2.3176,2955.7,2955.0,8.79827946]
[1766549483665,2.3176,2955.7,2955.0,7.91727946]
[1766549484295,2.34940015,2955.6,2955.0,7.91727946]
[1766549485598,2.34940015,2955.6,2955.1,0.79172795]
[1766549486397,2.34940015,2955.6,2955.0,7.91727946]
[1766549487805,2.34940015,2955.6,2955.0,4.53318471]
[1766549487973,2.34940015,2955.6,2955.0,3.38506111]
[1766549488371,2.34940015,2955.6,2955.0,6.76915586]
[1766549489508,2.34940015,2955.6,2955.1,0.0338398]
[1766549490810,0.002,2955.7,2955.1,0.0338398]
[1766549490811,0.002,2955.7,2955.3,1.2694]
[1766549490983,0.002,2955.7,2955.3,1.30323751]
[1766549491306,0.002,2955.7,2955.3,2.60536355]
[1766549493310,0.002,2955.7,2955.3,5.98906247]
[1766549493918,0.002,2955.7,2955.3,5.95522496]
[1766549494408,2.3786,2955.7,2955.0,0.001]
[1766549494608,2.3766,2955.5,2955.0,2.3034]
[1766549494815,2.4495,2955.7,2955.2,5.68619584]
[1766549495307,2.4495,2955.7,2955.3,5.68604302]
[1766549495482,0.002,2955.7,2955.4,2.3024]
[1766549501123,2.4495,2955.7,2955.1,3.38394526]
[1766549501328,2.4495,2955.7,2955.2,2.3024]
[1766549503023,0.002,2955.9,2955.2,2.3024]
[1766549503318,0.002,2955.9,2955.1,9.09568916]
[1766549503319,0.002,2955.9,2955.4,2.3024]
[1766549504507,2.4495,2955.9,2955.4,2.3024]
[1766549504697,0.002,2956.4,2955.5,2.33623522]
[1766549504898,2.4475,2956.3,2955.7,2.3024]
[1766549505203,2.4475,2956.3,2955.7,5.6856683]
[1766549505410,2.4475,2956.3,2955.8,2.3024]
[1766549506325,0.002,2956.4,2956.0,2.3024]
[1766549507018,2.4495,2956.4,2956.0,2.3024]
[1766549507225,2.4495,2956.4,2955.8,2.3024]
[1766549507426,2.4495,2956.4,2955.8,3.72769582]
[1766549508826,0.002,2955.9,2955.8,3.72769582]
[1766549509026,2.4495,2956.4,2955.8,3.72769582]
[1766549510135,2.4495,2956.4,2955.5,2.3024]
[1766549510330,2.4495,2956.4,2955.5,5.68591995]
[1766549510331,2.4475,2956.3,2955.5,5.68591995]
[1766549510898,2.4475,2956.3,2955.6,3.38340459]
[1766549511097,2.4475,2956.3,2955.5,5.68588017]
[1766549511527,2.4475,2956.3,2955.5,2.3024]
[1766549511926,2.4475,2956.3,2955.5,5.68587655]
[1766549512732,3.38267928,2956.3,2955.5,2.3024]
[1766549513023,2.4475,2956.2,2955.5,2.3024]
[1766549513200,2.4475,2956.2,2955.5,5.68592207]
[1766549514523,2.4475,2956.2,2955.4,0.001]
[1766549514830,2.45776676,2956.2,2955.4,0.001]
[1766549515621,3.38283549,2956.1,2955.4,0.001]
[1766549515825,2.78681023,2956.0,2955.4,0.001]
[1766549517041,2.78681023,2956.0,2955.4,2.3034]
[1766549517334,2.4475,2956.0,2955.4,2.3034]
[1766549520156,2.4475,2956.0,2955.5,2.3024]
[1766549520338,0.002,2956.2,2955.5,2.3024]
[1766549520511,2.4495,2956.2,2955.5,2.3024]
[1766549523139,2.5557,2956.1,2955.5,2.3024]
[1766549525339,2.5557,2956.1,2955.5,5.68591556]
[1766549525838,2.5557,2956.1,2955.6,2.5377]
[1766549530557,2.5557,2956.1,2955.6,2.5377]
[1766549531130,2.5557,2956.1,2955.4,3.38461826]
[1766549531332,2.5557,2956.1,2955.0,0.001]
[1766549531333,0.92406676,2956.0,2955.0,0.001]
[1766549531642,2.5557,2955.5,2955.0,0.001]
[1766549532167,2.5557,2955.3,2954.6,2.5377]
[1766549532357,2.5557,2955.1,2954.6,2.5377]
[1766549533234,2.5557,2955.1,2954.5,5.92235819]
[1766549533432,0.0338,2955.0,2954.5,5.92235819]
[1766549535266,2.5895,2955.0,2954.5,2.5377]
[1766549535637,2.5895,2955.0,2954.5,2.5387]
[1766549536675,2.5895,2955.0,2954.4,0.001]
[1766549536676,2.5557,2954.9,2954.4,0.001]
[1766549536836,2.5557,2954.9,2954.0,2.5387]
[1766549536837,2.5557,2954.7,2954.0,2.5387]
[1766549537036,2.5557,2954.5,2954.1,2.5377]
[1766549537236,0.0338,2954.4,2954.1,2.5377]
[1766549537770,0.0338,2954.4,2954.1,5.92281961]
[1766549537934,2.5557,2954.5,2954.1,5.92281961]
[1766549538366,2.5557,2954.8,2954.3,2.5377]
[1766549538567,0.0338,2954.7,2954.3,2.5377]
[1766549538879,2.5895,2954.7,2954.0,5.92388903]
[1766549539164,2.5895,2954.7,2954.0,2.5387]
[1766549539340,2.5895,2954.7,2954.0,6.80492787]
[1766549539540,2.5895,2954.7,2954.1,5.92280582]
[1766549539760,2.5895,2954.7,2954.1,2.5377]
[1766549540169,2.5557,2954.6,2954.1,2.52755939]
[1766549540349,0.0338,2954.5,2954.1,2.52755939]
[1766549542070,2.5895,2954.5,2954.1,2.52755939]
[1766549542764,0.0338,2954.5,2954.2,2.5377]
[1766549542936,0.0338,2954.7,2954.2,2.5377]
[1766549543337,2.5895,2954.8,2954.2,2.5377]
[1766549545372,3.18687197,2954.8,2954.2,2.5377]
[1766549546670,3.18687197,2954.8,2954.2,5.92269275]
[1766549546982,2.5895,2954.8,2954.3,2.5377]
[1766549548068,2.5895,2954.8,2954.3,3.4197]
[1766549550203,2.5895,2954.8,2954.3,3.40954463]
[1766549550580,2.5915,2954.8,2954.3,3.40954463]
[1766549552781,2.5915,2954.8,2954.3,0.882]
[1766549554179,2.5754,2954.7,2954.1,0.882]
[1766549554359,2.5754,2954.5,2954.1,0.882]
[1766549554554,2.6092,2954.4,2954.1,0.882]
[1766549555568,2.6092,2954.4,2954.1,4.26709938]
[1766549555768,2.5345,2954.7,2954.2,2.5486]
[1766549557984,2.5345,2954.7,2954.1,4.26709938]
[1766549558690,2.5365,2954.7,2954.1,6.81569938]
[1766549559192,2.5365,2954.7,2954.1,3.4306]
[1766549559688,2.5365,2954.7,2954.0,0.001]
[1766549559859,2.5345,2954.6,2954.1,0.882]
[1766549560058,2.5345,2954.6,2954.0,0.001]
[1766549561095,2.4124,2954.5,2954.0,0.001]
[1766549561387,2.65384,2954.5,2954.0,0.001]
[1766549563390,2.65384,2954.5,2953.8,4.26844193]
[1766549563582,2.4302,2954.4,2953.8,0.883]
[1766549565405,3.38501117,2954.2,2953.6,0.001]
[1766549565586,1.56,2954.1,2953.6,0.001]
[1766549566696,1.56,2954.1,2953.8,0.001]
[1766549570707,1.56,2954.1,2953.6,0.001]
[1766549576915,1.6416,2954.4,2953.7,2.5486]
[1766549580818,1.6666,2954.3,2953.7,2.5486]
[1766549581589,1.6666,2954.3,2953.7,5.93416368]
[1766549581785,1.6666,2954.3,2953.7,4.06433901]
[1766549583436,1.6666,2954.3,2953.7,2.5486]
[1766549583723,3.38492342,2954.3,2953.7,2.5486]
[1766549583928,1.6846,2954.2,2953.7,2.5486]
[1766549585419,1.6846,2954.2,2953.5,4.26876264]
[1766549585604,1.6846,2954.2,2953.5,3.5478]
[1766549585804,3.38501172,2954.2,2953.5,3.5478]
[1766549586108,1.6953,2954.1,2953.5,3.5478]
[1766549586437,1.6953,2954.1,2953.5,4.26880997]
[1766549586636,1.6953,2954.1,2953.6,2.6648]
[1766549588851,1.7143,2954.4,2953.7,2.6648]
[1766549589142,0.002,2954.4,2953.8,2.6648]
[1766549589345,0.002,2954.4,2954.0,2.6648]
[1766549589509,0.002,2954.4,2954.0,3.02286535]
[1766549591431,0.002,2954.4,2954.1,2.6648]
[1766549598047,0.002,2954.7,2954.1,2.6648]
[1766549598505,1.771,2954.7,2954.1,2.6648]
[1766549598928,1.771,2954.7,2954.0,0.0338524]
[1766549599130,1.769,2954.5,2953.8,2.6648]
[1766549599415,0.002,2954.7,2953.9,2.69865354]
[1766549600009,0.002,2954.7,2954.1,2.6648]
[1766549600315,0.002,2954.7,2954.0,6.77046957]
[1766549600316,0.002,2954.7,2954.3,2.6648]
[1766549601653,0.9066,2954.7,2954.0,6.04998631]
[1766549603160,0.9066,2954.7,2954.0,7.48885042]
[1766549606671,0.9066,2954.7,2954.1,2.69865125]
[1766549607177,0.9066,2954.7,2954.0,1.43886411]
[1766549607543,0.9066,2954.7,2954.0,4.82409635]
[1766549607755,0.9435,2954.6,2954.0,4.10366411]
[1766549608082,0.9435,2954.6,2954.0,2.6648]
[1766549608944,0.9435,2954.6,2954.0,6.05003497]
[1766549610178,0.9435,2954.6,2954.1,2.6648]
[1766549610341,0.002,2954.7,2954.5,4.95321131]
[1766549610673,0.002,2955.3,2954.6,2.6648]
[1766549610674,0.9592,2955.2,2954.6,2.6648]
[1766549610861,0.9592,2955.1,2954.2,3.5468]
[1766549612074,0.9592,2955.1,2954.2,0.882]
[1766549612244,0.9643,2954.9,2954.3,2.6653]
[1766549613146,0.002,2954.7,2954.3,2.6653]
[1766549616259,0.9911,2954.7,2954.3,2.6653]
[1766549617178,0.9911,2954.7,2954.1,9.22030015]
[1766549617179,0.9911,2954.7,2954.1,3.38508884]
[1766549617366,0.9911,2954.7,2954.0,2.707]
[1766549617572,0.9911,2954.7,2954.1,2.706]
[1766549617890,0.9911,2954.7,2954.1,4.95321131]
[1766549618088,0.002,2954.7,2954.2,2.706]
[1766549618293,0.002,2954.7,2954.4,2.706]
[1766549629202,0.002,2954.8,2954.5,2.706]
[1766549632605,1.0671,2954.8,2954.5,2.706]
[1766549632999,1.0671,2954.8,2954.3,0.001]
[1766549635977,1.51222156,2954.8,2954.3,0.001]
[1766549636178,1.51222156,2954.8,2954.3,2.707]
[1766549638979,1.0671,2954.8,2954.4,2.706]
[1766549639188,0.002,2954.8,2954.4,2.706]
[1766549639903,1.0916,2955.0,2954.4,2.706]
[1766549640717,4.47571276,2955.0,2954.4,2.706]
[1766549641009,1.0916,2955.0,2954.4,2.706]
[1766549641213,4.47569559,2955.0,2954.4,2.706]
[1766549642310,1.1043,2955.0,2954.4,2.706]
[1766549643204,1.1043,2955.0,2954.5,2.7085]
[1766549643909,0.002,2954.8,2954.5,2.7085]
[1766549644516,1.1167,2954.8,2954.4,0.001]
[1766549645906,1.1167,2954.8,2954.4,2.7095]
[1766549646721,0.002,2954.8,2954.4,2.7095]
[1766549650002,1.1332,2954.8,2954.4,2.7095]
[1766549650725,1.1344,2954.7,2954.4,0.001]
[1766549651104,0.002,2954.8,2954.4,2.7095]
[1766549653220,0.002,2954.8,2954.0,0.001]
[1766549653221,1.1406,2954.7,2954.0,0.001]
[1766549653425,0.03580001,2954.8,2954.0,2.7095]
[1766549653426,1.1079,2954.5,2954.0,2.7095]
[1766549653620,0.03380001,2954.4,2954.0,2.98045]
[1766549657630,0.03380001,2954.4,2954.0,6.36557935]
[1766549660228,0.03380001,2954.4,2954.0,3.65707935]
[1766549660410,0.03380001,2954.4,2954.1,2.7085]
[1766549661729,0.03380001,2954.4,2954.1,3.68359339]
[1766549661934,2.18357945,2954.8,2954.2,2.7085]
[1766549662131,1.1675,2954.8,2954.2,2.7085]
[1766549662335,1.1675,2954.8,2954.3,2.7085]
[1766549663933,0.002,2954.8,2954.3,2.7085]
[1766549664105,0.002,2954.8,2954.5,2.7085]
[1766549665650,1.1814,2954.8,2954.2,2.7085]
[1766549666308,1.1814,2954.8,2954.4,0.001]
[1766549668739,1.1814,2954.8,2954.0,4.26818972]
[1766549668942,1.1814,2954.8,2954.0,6.97668972]
[1766549669345,1.1814,2954.8,2954.0,8.11450885]
[1766549669528,1.1814,2954.8,2954.0,7.23250885]
[1766549670656,1.1814,2954.8,2954.1,2.7085]
[1766549672260,1.1814,2954.8,2954.1,6.09359838]
[1766549672759,1.1814,2954.8,2954.1,2.7085]
[1766549673565,1.1814,2954.8,2954.1,6.09361552]
[1766549673746,1.1991,2954.7,2954.1,3.38511552]
[1766549674058,1.1991,2954.7,2954.0,6.25718794]
[1766549674354,1.1991,2954.7,2954.0,3.38618794]
[1766549674560,1.1991,2954.7,2954.1,2.871]
[1766549676944,1.76887172,2954.8,2954.2,2.7618]
[1766549677144,1.2087,2954.7,2954.2,2.7618]
[1766549678571,1.2087,2954.7,2954.2,6.14680032]
[1766549678862,0.002,2954.8,2954.3,2.7618]
[1766549679233,0.002,2954.8,2954.3,2.79564896]
[1766549680385,0.002,2954.8,2954.3,3.38489119]
[1766549680536,0.002,2954.8,2954.4,2.7618]
[1766549692577,0.002,2954.8,2954.5,2.7618]
[1766549702295,1.89699687,2955.1,2954.4,3.38471931]
[1766549702457,0.002,2955.3,2954.6,2.7922]
[1766549702458,3.38577781,2955.3,2954.6,2.7922]
[1766549702657,4.40171963,2955.3,2954.6,2.82604552]
[1766549702957,1.2652,2955.2,2954.6,2.7922]
[1766549705099,1.01794182,2955.3,2954.7,2.7922]
[1766549705257,1.01794182,2955.3,2954.7,2.82604438]
[1766549705258,0.002,2955.3,2954.7,2.82604438]
[1766549705585,0.002,2955.3,2954.9,2.7922]
[1766549705900,1.2723,2955.3,2954.9,2.7922]
[1766549706288,1.2723,2955.2,2954.6,3.38450232]
[1766549706481,1.2723,2955.2,2954.7,2.7922]
[1766549707381,1.2723,2955.2,2954.7,6.17663431]
[1766549709105,1.2723,2955.2,2954.7,2.7922]
[1766549712167,1.2723,2955.2,2954.7,6.17661146]
[1766549713879,1.2723,2955.2,2954.7,2.7922]
[1766549714696,1.2723,2955.2,2954.7,6.17660991]
[1766549714900,1.2723,2955.2,2954.8,2.7922]
[1766549717185,1.2723,2955.2,2954.4,6.17791518]
[1766549717505,1.2723,2955.2,2954.4,2.7932]
[1766549717506,1.289,2955.1,2954.4,2.7932]
[1766549718906,1.289,2955.1,2954.4,6.17797401]
[1766549719202,1.289,2955.1,2954.5,2.7922]
[1766549719404,1.2919,2955.0,2954.4,0.001]
[1766549721898,4.67602281,2955.0,2954.4,0.001]
[1766549722100,1.2947,2954.9,2954.4,0.001]
[1766549723874,1.2947,2954.9,2954.1,6.17728548]
[1766549724070,1.2805,2954.7,2954.1,6.17728548]
[1766549724605,1.2805,2954.7,2954.2,2.7922]
[1766549725205,1.27034463,2954.7,2954.2,2.7922]
[1766549725606,1.27034463,2954.7,2954.3,2.7922]
[1766549726401,1.80048011,2955.1,2954.3,2.82604896]
[1766549726700,0.002,2955.2,2954.4,2.7922]
[1766549726910,0.002,2955.2,2954.6,2.7922]
[1766549727200,0.002,2955.2,2954.8,2.7922]
[1766549728292,1.2405,2955.2,2954.8,2.7922]
[1766549728805,1.2405,2955.2,2954.5,2.7922]
[1766549729224,1.2323,2955.1,2954.5,2.7922]
[1766549729715,1.2323,2955.1,2954.3,4.7896039]
[1766549729716,1.2262,2954.9,2954.3,6.6222]
[1766549730434,1.2262,2954.9,2954.3,2.7922]
[1766549730601,1.2262,2954.9,2954.1,0.001]
[1766549730794,1.2203,2954.7,2954.1,0.001]
[1766549731006,1.2193,2954.6,2954.0,0.001]
[1766549731313,1.2193,2954.5,2953.7,2.8632]
[1766549731515,1.2124,2954.3,2953.7,2.8632]
[1766549731885,1.2124,2954.3,2953.7,6.24876943]
[1766549733918,1.2124,2954.3,2953.7,2.8632]
[1766549734790,1.2124,2954.3,2953.6,3.38565603]
[1766549735191,1.2124,2954.3,2953.6,3.38665603]
[1766549736390,1.2124,2954.3,2953.6,0.001]
[1766549736888,1.1782,2954.1,2953.6,2.82185698]
[1766549737092,1.1782,2954.3,2953.6,2.82185698]
[1766549739020,1.1782,2954.3,2953.7,3.38558418]
[1766549739325,1.1782,2954.3,2953.7,6.17258418]
[1766549746129,1.1782,2954.3,2953.7,2.787]
[1766549746328,1.1262,2954.2,2953.7,2.787]
[1766549747128,1.1262,2954.2,2953.7,6.17257364]
[1766549749531,1.1262,2954.2,2953.6,3.38666995]
[1766549749698,1.1262,2954.2,2953.6,0.001]
[1766549749699,1.1118,2954.1,2953.6,0.001]
[1766549749903,1.1118,2953.9,2953.6,0.001]
[1766549750705,1.1118,2953.9,2953.6,3.38668433]
[1766549750902,1.1118,2953.9,2953.6,0.001]
[1766549753319,1.1118,2953.9,2953.3,0.001]
[1766549753525,1.1118,2953.9,2953.3,2.788]
[1766549754444,1.1118,2953.9,2953.4,3.38592808]
[1766549755319,1.1118,2953.9,2953.4,3.37577064]
[1766549755944,1.1118,2953.9,2953.3,6.17399094]
[1766549757046,1.1118,2953.9,2953.4,0.03385928]
[1766549757246,1.1118,2953.9,2953.4,2.82085928]
[1766549758118,1.0694,2954.2,2953.5,2.787]
[1766549759954,1.061,2954.1,2953.5,2.787]
[1766549760121,1.061,2953.9,2953.4,3.38688139]
[1766549760471,1.061,2953.9,2953.4,0.03485928]
[1766549760832,1.061,2953.9,2953.4,0.001]
[1766549761358,1.2555,2953.9,2953.4,3.38589993]
[1766549761558,1.2555,2953.9,2953.3,6.1913507]
[1766549761746,1.2555,2953.9,2953.3,6.15749028]
[1766549763156,1.2555,2953.9,2953.3,2.7715]
[1766549763370,1.2555,2953.9,2953.3,6.15752675]
[1766549763951,1.2555,2953.9,2953.4,0.03385928]
[1766549764363,1.2555,2953.9,2953.4,3.41978281]
[1766549764535,1.061,2953.9,2953.4,3.41978281]
[1766549767257,1.061,2953.9,2953.3,6.15746443]
[1766549767964,1.061,2953.9,2953.4,3.4197672]
[1766549768560,1.061,2953.9,2953.4,6.1922672]
[1766549771974,1.061,2953.9,2953.5,2.7715]
[1766549772159,0.002,2954.0,2953.6,2.80535698]
[1766549772462,0.002,2954.0,2953.6,3.42458347]
[1766549773035,0.002,2954.0,2953.6,3.39072649]
[1766549773974,0.002,2954.0,2953.6,6.77641952]
[1766549776059,0.002,2954.0,2953.6,3.39072649]
[1766549776361,0.002,2954.0,2953.4,3.38688621]
[1766549776740,4.9555449,2954.0,2953.4,0.001]
[1766549776970,0.002,2954.0,2953.4,0.001]
[1766549777674,0.002,2954.0,2953.3,0.001]
[1766549777884,0.002,2954.0,2953.3,0.03486042]
[1766549778066,0.58575449,2954.0,2953.3,0.03486042]
[1766549779464,0.58575449,2954.0,2953.3,3.42081089]
[1766549779665,0.58575449,2954.0,2953.3,0.03486042]
[1766549779970,0.58575449,2954.0,2953.3,0.001]
[1766549779971,3.97103347,2954.0,2953.3,0.001]
[1766549780175,3.97103347,2954.0,2953.2,0.03486157]
[1766549780380,0.48530335,2953.9,2953.2,0.03486157]
[1766549780575,0.48530335,2953.9,2953.2,3.4209683]
[1766549780986,0.03386172,2953.8,2953.0,3.38631643]
[1766549782772,0.03386172,2953.8,2952.9,3.3875014]
[1766549782998,4.9535449,2953.4,2952.8,0.001]
[1766549783180,0.52921621,2953.3,2952.7,0.001]
[1766549783473,4.94338746,2953.2,2952.2,2.7725]
[1766549783670,0.03386172,2953.1,2952.2,2.7725]
[1766549784074,0.03386172,2953.1,2953.0,0.001]
[1766549784678,0.03386172,2953.1,2952.4,3.38702949]
[1766549784878,0.03386172,2953.1,2952.3,6.15868964]
[1766549785177,0.03386172,2953.1,2952.3,7.59868384]
[1766549786175,0.03386172,2953.1,2952.3,8.21437348]
[1766549786365,0.03386172,2953.2,2952.4,2.80537074]
[1766549786570,0.03386172,2953.4,2952.4,2.80537074]
[1766549786770,1.05047487,2953.4,2952.6,2.7715]
[1766549786965,1.05047487,2953.4,2952.7,2.8053673]
[1766549788153,0.01026676,2953.0,2952.4,6.15857462]
[1766549788352,0.05259372,2953.2,2952.4,6.15857462]
[1766549788553,0.01026676,2953.0,2952.4,2.7715]
[1766549788870,0.01026676,2953.0,2952.2,2.7725]
[1766549789068,0.05259659,2953.0,2952.2,2.7725]
[1766549789279,0.05259659,2953.0,2952.3,0.95483147]
[1766549790072,0.05259659,2953.0,2952.2,2.7725]
[1766549790272,0.01026676,2952.8,2952.2,2.7725]
[1766549790502,0.01026676,2952.8,2952.2,0.001]
[1766549790688,0.01026676,2952.8,2952.2,2.7725]
[1766549790882,0.01026676,2952.8,2952.2,6.159789]
[1766549791076,0.01026676,2952.8,2952.2,7.49762126]
[1766549791702,0.89226676,2953.1,2952.2,0.001]
[1766549792000,1.01667516,2953.4,2952.6,2.6296]
[1766549792188,6.78304814,2953.9,2952.8,2.6296]
[1766549792388,1.0165167,2953.8,2953.0,2.6296]
[1766549792597,1.0165167,2953.8,2953.1,2.66346272]
[1766549792893,0.01026676,2953.7,2953.1,2.6296]
[1766549793102,3.3856988,2953.6,2953.1,2.6296]
[1766549793300,3.39590063,2953.7,2953.1,2.6296]
[1766549794197,0.01026676,2953.5,2952.8,2.6296]
[1766549795473,3.39587693,2953.7,2952.9,2.59826501]
[1766549795801,3.39587693,2953.7,2952.9,2.5644]
[1766549795989,3.39587693,2953.7,2952.9,3.32369505]
[1766549796680,6.7814871,2953.7,2952.9,3.32369505]
[1766549796882,0.01026676,2953.5,2952.9,3.32369505]
[1766549798999,3.39608608,2953.5,2952.9,3.32369505]
[1766549799704,0.01026676,2953.3,2952.6,2.5644]
[1766549799870,0.01026676,2953.1,2952.4,0.883]
[1766549800806,0.01026676,2953.1,2952.4,3.4474]
[1766549801175,0.01026676,2953.1,2952.5,2.5644]
[1766549801482,3.39659384,2953.1,2952.5,3.24795382]
[1766549801685,6.78292092,2953.1,2952.5,3.24795382]
[1766549801883,6.78292092,2953.1,2952.3,0.001]
[1766549802188,0.01026676,2952.9,2952.4,0.883]
[1766549802382,0.01026676,2952.9,2952.3,0.001]
[1766549802603,0.01026676,2952.9,2952.3,2.5654]
[1766549803511,0.89226676,2953.1,2952.3,2.5654]
[1766549803668,0.01026676,2952.9,2952.3,2.5654]
[1766549804201,0.01026676,2952.9,2952.3,0.001]
[1766549804608,0.01026676,2952.7,2952.2,0.001]
[1766549805612,0.01026676,2952.7,2949.9,0.001]
[1766549805613,0.01026676,2951.6,2949.9,0.001]
[1766549805914,4.95891311,2950.4,2949.6,3.39021149]
[1766549806113,0.882,2950.5,2949.7,2.5644]
[1766549806300,0.1768,2950.8,2949.7,2.5644]
[1766549806609,1.01758902,2950.3,2949.7,2.5644]
[1766549806770,0.87427464,2950.3,2949.5,4.95891311]
[1766549806973,0.1121683,2950.8,2950.0,2.5644]
[1766549807174,0.1121683,2950.8,2950.2,2.5644]
[1766549807405,0.0339006,2951.5,2950.2,2.5644]
[1766549807712,3.367e-05,2950.7,2950.5,2.5644]
[1766549807877,3.42211975,2951.5,2950.5,2.5644]
[1766549808073,1.01729572,2951.4,2950.5,2.5644]
[1766549808274,0.0339006,2951.3,2950.7,2.5644]
[1766549809276,0.882,2952.3,2951.1,2.5644]
[1766549809506,0.0129984,2952.2,2951.2,0.03388452]
[1766549809671,3.40030541,2952.2,2951.4,2.5644]
[1766549810002,0.5429392,2952.2,2951.4,2.5644]
[1766549810177,0.0129984,2952.2,2951.4,2.58811756]
[1766549810803,0.0129984,2952.9,2951.5,2.5644]
[1766549811010,4.28151943,2952.9,2951.5,2.5644]
[1766549811595,7.66804046,2952.9,2951.6,3.38799295]
[1766549811827,7.65504206,2952.9,2951.7,2.5644]
[1766549812111,0.77850261,2952.8,2951.7,3.49844374]
[1766549812478,0.77850261,2952.8,2951.3,2.5644]
[1766549812674,0.77850261,2952.8,2950.5,6.75884209]
[1766549812675,0.01026676,2951.7,2950.2,2.5644]
[1766549812899,0.01026676,2951.3,2950.2,2.5644]
[1766549813073,0.01026676,2951.0,2949.9,3.58284062]
[1766549813277,0.8949984,2950.9,2949.6,2.5644]
[1766549813476,0.8949984,2950.9,2949.6,5.9546201]
[1766549813898,3.38891148,2950.8,2949.6,5.9546201]
[1766549814095,0.0129984,2950.7,2949.7,2.59830175]
[1766549814298,0.0129984,2950.8,2949.7,2.59830175]